fUST/lending_fUST_20240501
["ID","MTS","AMOUNT","RATE_DAILY","PERIOD"]
[325047300,1714507848456,-500.0,0.00033698,7]
[325047302,1714507848465,-500.0,0.00033698,7]
[325047304,1714507848475,-500.0,0.00033698,7]
[325047306,1714507848483,-500.0,0.00033698,7]
[325047308,1714507848492,-500.0,0.00033698,7]
[325047310,1714507848502,-500.0,0.00033698,7]
[325047312,1714507848511,-500.0,0.00033698,7]
[325047314,1714507848521,-500.0,0.00033698,7]
[325047316,1714507848531,-500.0,0.00033698,7]
[325047318,1714507848540,-500.0,0.00033698,7]
[325047320,1714507848550,-500.0,0.00033698,7]
[325047322,1714507848560,-500.0,0.00033698,7]
[325047324,1714507848569,-500.0,0.00033698,7]
[325047326,1714507848578,-500.0,0.00033698,7]
[325047328,1714507848587,-500.0,0.00033698,7]
[325047330,1714507848597,-500.0,0.00033698,7]
[325047332,1714507848605,-387.12851808,0.00033698,7]
[325047334,1714507848615,-500.0,0.00033698,7]
[325047336,1714507848624,-656.74,0.00033698,7]
[325047338,1714507848633,-500.0,0.00033698,7]
[325047340,1714507848642,-500.0,0.00033698,7]
[325047342,1714507848651,-500.0,0.00033698,7]
[325047344,1714507848660,-500.0,0.00033698,7]
[325047346,1714507848669,-500.0,0.00033698,7]
[325047348,1714507848678,-500.0,0.00033698,7]
[325047350,1714507848692,-500.0,0.00033698,7]
[325047352,1714507848702,-500.0,0.00033698,7]
[325047354,1714507848711,-1254.69,0.00033698,7]
[325047356,1714507848720,-500.0,0.00033698,7]
[325047358,1714507848729,-500.0,0.00033698,7]
[325047360,1714507848738,-500.0,0.00033698,7]
[325047362,1714507848747,-500.0,0.00033698,7]
[325047364,1714507848756,-500.0,0.00033698,7]
[325047366,1714507848766,-500.0,0.00033698,7]
[325047367,1714507848775,-500.0,0.00033698,7]
[325047369,1714507848785,-500.0,0.00033698,7]
[325047371,1714507848794,-500.0,0.00033698,7]
[325047373,1714507848803,-500.0,0.00033698,7]
[325047375,1714507848812,-500.0,0.00033698,7]
[325047377,1714507848822,-500.0,0.00033698,7]
[325047379,1714507848831,-500.0,0.00033698,7]
[325047381,1714507848840,-500.0,0.00033698,7]
[325047384,1714507848850,-500.0,0.00033698,7]
[325047386,1714507848858,-500.0,0.00033698,7]
[325047387,1714507848868,-1698.03,0.00033698,7]
[325047390,1714507848877,-200.05755199,0.00033698,7]
[325047391,1714507848886,-500.0,0.00033698,7]
[325047393,1714507848895,-500.0,0.00033698,7]
[325047395,1714507848904,-500.0,0.00033698,7]
[325047397,1714507848914,-500.0,0.00033698,7]
[325047399,1714507848923,-500.0,0.00033698,7]
[325047401,1714507848932,-500.0,0.00033698,7]
[325047403,1714507848946,-513.51,0.00033698,7]
[325047405,1714507848955,-1022.18,0.00033698,7]
[325047407,1714507848965,-1006.0,0.00033781,5]
[325047409,1714507848973,-281.5,0.00033935,14]
[325047412,1714507848983,-266.59020466,0.00033971,4]
[325047413,1714507848993,-538.28,0.00033972,7]
[325047415,1714507849004,-500.0,0.00033972,7]
[325047418,1714507849015,-500.0,0.00033972,7]
[325047420,1714507849025,-500.0,0.00033972,7]
[325047422,1714507849035,-500.0,0.00033972,7]
[325047424,1714507849045,-500.0,0.00033972,7]
[325047426,1714507849054,-500.0,0.00033972,7]
[325047427,1714507849062,-500.0,0.00033972,7]
[325047430,1714507849072,-362.58735457,0.00033972,7]
[325047432,1714507849082,-236.18,0.00033972,7]
[325047434,1714507849091,-500.0,0.00033972,7]
[325047436,1714507849100,-500.0,0.00033972,7]
[325047437,1714507849109,-500.0,0.00033972,7]
[325047439,1714507849119,-632.59230456,0.00033972,7]
[325047442,1714507849128,-592.02,0.00033972,7]
[325047443,1714507849138,-500.0,0.00033972,7]
[325047445,1714507849147,-500.0,0.00033972,7]
[325047448,1714507849157,-187.96262711,0.00033972,7]
[325047449,1714507849166,-500.0,0.00033972,7]
[325047451,1714507849176,-500.0,0.00033972,7]
[325047454,1714507849189,-500.0,0.00033972,7]
[325047455,1714507849198,-500.0,0.00033972,7]
[325047457,1714507849207,-656.74,0.00033972,7]
[325047459,1714507849216,-500.0,0.00033972,7]
[325047462,1714507849225,-500.0,0.00033972,7]
[325047463,1714507849234,-500.0,0.00033972,7]
[325047465,1714507849244,-500.0,0.00033972,7]
[325047468,1714507849253,-500.0,0.00033972,7]
[325047469,1714507849263,-500.0,0.00033972,7]
[325047472,1714507849272,-1254.69,0.00033972,7]
[325047473,1714507849282,-500.0,0.00033972,7]
[325047475,1714507849291,-500.0,0.00033972,7]
[325047478,1714507849301,-500.0,0.00033972,7]
[325047480,1714507849310,-500.0,0.00033972,7]
[325047481,1714507849319,-500.0,0.00033972,7]
[325047483,1714507849328,-500.0,0.00033972,7]
[325047486,1714507849338,-263.62375556,0.00033972,7]
[325047487,1714507849347,-500.0,0.00033972,7]
[325047489,1714507849356,-500.0,0.00033972,7]
[325047491,1714507849366,-500.0,0.00033972,7]
[325047494,1714507849375,-500.0,0.00033972,7]
[325047496,1714507849384,-500.0,0.00033972,7]
[325047498,1714507849394,-500.0,0.00033972,7]
[325047500,1714507849403,-500.0,0.00033972,7]
[325047502,1714507849412,-500.0,0.00033972,7]
[325047504,1714507849422,-500.0,0.00033972,7]
[325047506,1714507849431,-1698.03,0.00033972,7]
[325047508,1714507849442,-224.28024396,0.00033972,7]
[325047510,1714507849452,-176.21774259,0.00033972,7]
[325047511,1714507849461,-500.0,0.00033972,7]
[325047514,1714507849471,-500.0,0.00033972,7]
[325047516,1714507849480,-500.0,0.00033972,7]
[325047517,1714507849489,-500.0,0.00033972,7]
[325047520,1714507849499,-513.51,0.00033972,7]
[325047522,1714507849508,-1022.18,0.00033972,7]
[325047523,1714507849517,-466.43678541,0.00034,4]
[325047525,1714507849526,-538.28,0.00034246,7]
[325047528,1714507849536,-500.0,0.00034246,7]
[325047530,1714507849545,-500.0,0.00034246,7]
[325047532,1714507849554,-500.0,0.00034246,7]
[325047533,1714507849564,-500.0,0.00034246,7]
[325047536,1714507849573,-500.0,0.00034246,7]
[325047538,1714507849583,-500.0,0.00034246,7]
[325047540,1714507849591,-511.0,0.00034246,7]
[325047542,1714507849601,-500.0,0.00034246,7]
[325047543,1714507849609,-500.0,0.00034246,7]
[325047545,1714507849619,-500.0,0.00034246,7]
[325047548,1714507849628,-500.0,0.00034246,7]
[325047549,1714507849637,-500.0,0.00034246,7]
[325047551,1714507849647,-500.0,0.00034246,7]
[325047553,1714507849656,-171.80868443,0.00034246,7]
[325047556,1714507849665,-656.74,0.00034246,7]
[325047558,1714507849675,-500.0,0.00034246,7]
[325047560,1714507849685,-500.0,0.00034246,7]
[325047561,1714507849697,-500.0,0.00034246,7]
[325047563,1714507849706,-500.0,0.00034246,7]
[325047565,1714507849715,-500.0,0.00034246,7]
[325047566,1714507849725,-500.0,0.00034246,7]
[325047567,1714507849733,-1254.69,0.00034246,7]
[325047568,1714507849743,-500.0,0.00034246,7]
[325047569,1714507849752,-500.0,0.00034246,7]
[325047570,1714507849761,-500.0,0.00034246,7]
[325047571,1714507849770,-500.0,0.00034246,7]
[325047572,1714507849779,-500.0,0.00034246,7]
[325047573,1714507849789,-500.0,0.00034246,7]
[325047574,1714507849798,-500.0,0.00034246,7]
[325047575,1714507849807,-500.0,0.00034246,7]
[325047576,1714507849815,-500.0,0.00034246,7]
[325047577,1714507849825,-500.0,0.00034246,7]
[325047578,1714507849834,-500.0,0.00034246,7]
[325047579,1714507849843,-477.54665271,0.00034246,7]
[325047580,1714507849852,-500.0,0.00034246,7]
[325047581,1714507849861,-500.0,0.00034246,7]
[325047582,1714507849870,-500.0,0.00034246,7]
[325047583,1714507849879,-1698.03,0.00034246,7]
[325047584,1714507849889,-500.0,0.00034246,7]
[325047585,1714507849897,-500.0,0.00034246,7]
[325047586,1714507849906,-500.0,0.00034246,7]
[325047587,1714507849915,-500.0,0.00034246,7]
[325047588,1714507849925,-513.51,0.00034246,7]
[325047589,1714507849934,-1022.18,0.00034246,7]
[325047590,1714507849945,-173.857793,0.00034307,2]
[325047591,1714507849954,-173.630495,0.00034307,2]
[325047592,1714507849963,-538.28,0.0003452,7]
[325047593,1714507849972,-500.0,0.0003452,7]
[325047595,1714507849981,-500.0,0.0003452,7]
[325047597,1714507849993,-500.0,0.0003452,7]
[325047599,1714507850002,-500.0,0.0003452,7]
[325047601,1714507850011,-500.0,0.0003452,7]
[325047603,1714507850021,-500.0,0.0003452,7]
[325047605,1714507850031,-530.0,0.0003452,7]
[325047607,1714507850041,-500.0,0.0003452,7]
[325047608,1714507850051,-500.0,0.0003452,7]
[325047610,1714507850061,-500.0,0.0003452,7]
[325047612,1714507850073,-500.0,0.0003452,7]
[325047614,1714507850082,-500.0,0.0003452,7]
[325047616,1714507850091,-656.74,0.0003452,7]
[325047618,1714507850100,-500.0,0.0003452,7]
[325047620,1714507850109,-500.0,0.0003452,7]
[325047622,1714507850118,-500.0,0.0003452,7]
[325047624,1714507850127,-500.0,0.0003452,7]
[325047626,1714507850136,-500.0,0.0003452,7]
[325047628,1714507850145,-1254.69,0.0003452,7]
[325047630,1714507850155,-500.0,0.0003452,7]
[325047632,1714507850166,-500.0,0.0003452,7]
[325047634,1714507850175,-500.0,0.0003452,7]
[325047636,1714507850184,-500.0,0.0003452,7]
[325047638,1714507850195,-500.0,0.0003452,7]
[325047640,1714507850205,-500.0,0.0003452,7]
[325047642,1714507850213,-500.0,0.0003452,7]
[325047644,1714507850222,-500.0,0.0003452,7]
[325047646,1714507850231,-500.0,0.0003452,7]
[325047648,1714507850241,-537.18,0.0003452,7]
[325047650,1714507850250,-330.07187551,0.0003452,7]
[325047652,1714507850259,-500.0,0.0003452,7]
[325047654,1714507850269,-500.0,0.0003452,7]
[325047656,1714507850278,-591.68595008,0.0003452,7]
[325047658,1714507850287,-1698.03,0.0003452,7]
[325047660,1714507850296,-500.0,0.0003452,7]
[325047662,1714507850305,-500.0,0.0003452,7]
[325047664,1714507850315,-326.61119721,0.0003452,7]
[325047676,1714507850408,-500.0,0.0003452,7]
[325047678,1714507850417,-513.51,0.0003452,7]
[325047680,1714507850427,-1022.18,0.0003452,7]
[325047682,1714507850438,-209.677893,0.00034521,2]
[325047684,1714507850447,-538.28,0.00034794,7]
[325047686,1714507850456,-500.0,0.00034794,7]
[325047688,1714507850465,-500.0,0.00034794,7]
[325047690,1714507850474,-500.0,0.00034794,7]
[325047692,1714507850484,-500.0,0.00034794,7]
[325047694,1714507850493,-500.0,0.00034794,7]
[325047696,1714507850503,-500.0,0.00034794,7]
[325047698,1714507850512,-500.0,0.00034794,7]
[325047700,1714507850522,-500.0,0.00034794,7]
[325047702,1714507850530,-500.0,0.00034794,7]
[325047704,1714507850540,-500.0,0.00034794,7]
[325047706,1714507850549,-423.6,0.00034794,7]
[325047707,1714507850559,-656.74,0.00034794,7]
[325047709,1714507850568,-205.93,0.00034794,7]
[325047711,1714507850577,-266.24524035,0.00034794,7]
[325047713,1714507850587,-500.0,0.00034794,7]
[325047715,1714507850597,-500.0,0.00034794,7]
[325047717,1714507850606,-500.0,0.00034794,7]
[325047720,1714507850615,-1254.69,0.00034794,7]
[325047721,1714507850625,-500.0,0.00034794,7]
[325047723,1714507850634,-500.0,0.00034794,7]
[325047726,1714507850644,-500.0,0.00034794,7]
[325047727,1714507850655,-500.0,0.00034794,7]
[325047729,1714507850668,-500.0,0.00034794,7]
[325047731,1714507850678,-500.0,0.00034794,7]
[325047733,1714507850690,-500.0,0.00034794,7]
[325047735,1714507850700,-500.0,0.00034794,7]
[325047737,1714507850709,-500.0,0.00034794,7]
[325047740,1714507850719,-500.0,0.00034794,7]
[325047742,1714507850728,-500.0,0.00034794,7]
[325047744,1714507850738,-1698.03,0.00034794,7]
[325047746,1714507850747,-500.0,0.00034794,7]
[325047748,1714507850756,-500.0,0.00034794,7]
[325047750,1714507850765,-500.0,0.00034794,7]
[325047752,1714507850775,-513.51,0.00034794,7]
[325047754,1714507850784,-1022.18,0.00034794,7]
[325047755,1714507850793,-1000.0,0.000348,3]
[325047757,1714507850802,-281.5,0.00034846,14]
[325047759,1714507850811,-173.857793,0.00034878,2]
[325047761,1714507850820,-26908.90743252,0.000349,2]
[325047763,1714507850830,-850.84224864,0.00035,4]
[325047766,1714507850839,-5916.15000564,0.00035,4]
[325047768,1714507850849,-854.20368441,0.00035,2]
[325047770,1714507850859,-257.56423254,0.00035,4]
[325047771,1714507850868,-474.82426074,0.00035,30]
[325047773,1714507850877,-849.10028097,0.00035,30]
[325047776,1714507850887,-1044.02355144,0.00035,30]
[325047777,1714507850896,-447.14590358,0.00035,10]
[325047779,1714507850906,-1000.0,0.00035,5]
[325047781,1714507850915,-538.28,0.00035068,7]
[325047783,1714507850924,-500.0,0.00035068,7]
[325047785,1714507850934,-500.0,0.00035068,7]
[325047788,1714507850946,-500.0,0.00035068,7]
[325047790,1714507850955,-500.0,0.00035068,7]
[325047792,1714507850965,-500.0,0.00035068,7]
[325047793,1714507850974,-500.0,0.00035068,7]
[325047795,1714507850983,-500.0,0.00035068,7]
[325047798,1714507850993,-500.0,0.00035068,7]
[325047799,1714507851006,-500.0,0.00035068,7]
[325047802,1714507851015,-500.0,0.00035068,7]
[325047804,1714507851026,-656.74,0.00035068,7]
[325047806,1714507851036,-500.0,0.00035068,7]
[325047808,1714507851056,-500.0,0.00035068,7]
[325047811,1714507851070,-243.86447044,0.00035068,7]
[325047813,1714507851083,-1254.69,0.00035068,7]
[325047815,1714507851096,-500.0,0.00035068,7]
[325047817,1714507851106,-500.0,0.00035068,7]
[325047819,1714507851117,-500.0,0.00035068,7]
[325047821,1714507851128,-500.0,0.00035068,7]
[325047823,1714507851138,-500.0,0.00035068,7]
[325047825,1714507851147,-500.0,0.00035068,7]
[325047827,1714507851157,-500.0,0.00035068,7]
[325047829,1714507851167,-500.0,0.00035068,7]
[325047831,1714507851177,-500.0,0.00035068,7]
[325047833,1714507851188,-196.4,0.00035068,7]
[325047835,1714507851198,-1698.03,0.00035068,7]
[325047837,1714507851208,-500.0,0.00035068,7]
[325047839,1714507851217,-508.83905917,0.00035068,7]
[325047841,1714507851227,-500.0,0.00035068,7]
[325047843,1714507851237,-513.51,0.00035068,7]
[325047845,1714507851248,-1022.18,0.00035068,7]
[325047847,1714507851258,-224.909,0.00035156,2]
[325047849,1714507851268,-417.0,0.00035156,2]
[325047851,1714507851278,-538.28,0.00035342,7]
[325047853,1714507851287,-500.0,0.00035342,7]
[325047856,1714507851297,-500.0,0.00035342,7]
[325047858,1714507851307,-500.0,0.00035342,7]
[325047860,1714507851317,-500.0,0.00035342,7]
[325047862,1714507851326,-500.0,0.00035342,7]
[325047864,1714507851337,-500.0,0.00035342,7]
[325047866,1714507851347,-500.0,0.00035342,7]
[325047868,1714507851356,-500.0,0.00035342,7]
[325047870,1714507851365,-402.2,0.00035342,7]
[325047872,1714507851375,-500.0,0.00035342,7]
[325047874,1714507851384,-656.74,0.00035342,7]
[325047876,1714507851394,-500.0,0.00035342,7]
[325047878,1714507851404,-500.0,0.00035342,7]
[325047880,1714507851413,-1254.69,0.00035342,7]
[325047882,1714507851423,-500.0,0.00035342,7]
[325047884,1714507851433,-500.0,0.00035342,7]
[325047886,1714507851444,-500.0,0.00035342,7]
[325047888,1714507851453,-500.0,0.00035342,7]
[325047890,1714507851463,-500.0,0.00035342,7]
[325047892,1714507851472,-500.0,0.00035342,7]
[325047894,1714507851482,-500.0,0.00035342,7]
[325047896,1714507851491,-500.0,0.00035342,7]
[325047898,1714507851502,-500.0,0.00035342,7]
[325047900,1714507851512,-1698.03,0.00035342,7]
[325047902,1714507851521,-500.0,0.00035342,7]
[325047904,1714507851532,-500.0,0.00035342,7]
[325047906,1714507851542,-513.51,0.00035342,7]
[325047908,1714507851551,-1022.18,0.00035342,7]
[325047910,1714507851561,-173.857793,0.0003545,2]
[325047912,1714507851571,-1006.0,0.00035558,5]
[325047914,1714507851580,-9799.0,0.00035612,2]
[325047916,1714507851589,-9799.0,0.00035612,2]
[325047918,1714507851600,-9799.0,0.00035612,2]
[325047920,1714507851610,-9799.0,0.00035612,2]
[325047922,1714507851618,-9799.0,0.00035612,2]
[325047924,1714507851627,-9799.0,0.00035612,2]
[325047926,1714507851637,-9799.0,0.00035612,2]
[325047928,1714507851646,-9799.0,0.00035612,2]
[325047930,1714507851655,-8680.76269,0.00035612,2]
[325047999,1714507852304,-500.0,0.00033424,7]
[325048000,1714507852314,-500.0,0.00033698,7]
[325048001,1714507852323,-500.0,0.00033698,7]
[325048002,1714507852332,-500.0,0.00033972,7]
[325048003,1714507852342,-500.0,0.00033972,7]
[325048004,1714507852351,-383.88091648,0.00034246,7]
[325048005,1714507852361,-500.0,0.00034246,7]
[325048007,1714507852370,-500.0,0.0003452,7]
[325048009,1714507852379,-500.0,0.00034794,7]
[325048011,1714507852388,-779.17120746,0.00035613,4]
[325048013,1714507852397,-538.28,0.00035616,7]
[325048015,1714507852406,-500.0,0.00035616,7]
[325048017,1714507852416,-500.0,0.00035616,15]
[325048019,1714507852425,-240.8,0.00035616,7]
[325048021,1714507852434,-303.2,0.00035616,7]
[325048023,1714507852444,-500.0,0.00035616,7]
[325048025,1714507852453,-500.0,0.00035616,7]
[325048027,1714507852463,-500.0,0.00035616,7]
[325048029,1714507852472,-192.88,0.00035616,7]
[325048031,1714507852481,-500.0,0.00035616,7]
[325048033,1714507852490,-500.0,0.00035616,7]
[325048035,1714507852500,-656.74,0.00035616,7]
[325048037,1714507852509,-166.58411324,0.00035616,7]
[325048039,1714507852518,-342.76,0.00035616,7]
[325048041,1714507852527,-1254.69,0.00035616,7]
[325048043,1714507852536,-500.0,0.00035616,7]
[325048045,1714507852546,-500.0,0.00035616,7]
[325048047,1714507852555,-500.0,0.00035616,7]
[325048049,1714507852564,-500.0,0.00035616,7]
[325048051,1714507852573,-339.17706372,0.00035616,7]
[325048054,1714507852582,-500.0,0.00035616,7]
[325048056,1714507852592,-500.0,0.00035616,7]
[325048058,1714507852602,-500.0,0.00035616,7]
[325048060,1714507852612,-500.0,0.00035616,7]
[325048061,1714507852622,-1542.03504015,0.00035616,7]
[325048064,1714507852634,-155.99495985,0.00035616,7]
[325048066,1714507852643,-500.0,0.00035616,7]
[325048068,1714507852651,-204.96,0.00035616,7]
[325048070,1714507852660,-139.03841065,0.00035616,7]
[325048072,1714507852671,-374.47158935,0.00035616,7]
[325048074,1714507852680,-1022.18,0.00035616,7]
[325048076,1714507852691,-1413.834031,0.00035616,120]
[325048078,1714507852700,-281.5,0.00035756,14]
[325048080,1714507852711,-538.28,0.0003589,7]
[325048082,1714507852720,-500.0,0.0003589,7]
[325048084,1714507852730,-500.0,0.0003589,7]
[325048086,1714507852739,-500.0,0.0003589,7]
[325048088,1714507852749,-500.0,0.0003589,7]
[325048090,1714507852758,-206.52,0.0003589,7]
[325048092,1714507852769,-500.0,0.0003589,7]
[325048094,1714507852779,-656.74,0.0003589,7]
[325048096,1714507852788,-1254.69,0.0003589,7]
[325048098,1714507852798,-500.0,0.0003589,7]
[325048100,1714507852807,-500.0,0.0003589,7]
[325048102,1714507852817,-500.0,0.0003589,7]
[325048104,1714507852826,-500.0,0.0003589,7]
[325048106,1714507852835,-500.0,0.0003589,7]
[325048108,1714507852845,-500.0,0.0003589,7]
[325048110,1714507852854,-500.0,0.0003589,7]
[325048122,1714507852963,-500.0,0.0003589,7]
[325048124,1714507852973,-1698.03,0.0003589,7]
[325048126,1714507852982,-500.0,0.0003589,7]
[325048128,1714507852995,-513.51,0.0003589,7]
[325048130,1714507853007,-1022.18,0.0003589,7]
[325048132,1714507853016,-173.857793,0.00036022,2]
[325048134,1714507853028,-172.02083915,0.00036026,7]
[325048136,1714507853039,-252.62250464,0.00036127,2]
[325048138,1714507853047,-538.28,0.00036164,7]
[325048140,1714507853056,-500.0,0.00036164,7]
[325048142,1714507853065,-500.0,0.00036164,7]
[325048144,1714507853074,-500.0,0.00036164,7]
[325048146,1714507853083,-400.6,0.00036164,7]
[325048148,1714507853092,-500.0,0.00036164,7]
[325048150,1714507853102,-656.74,0.00036164,7]
[325048152,1714507853111,-1254.69,0.00036164,7]
[325048154,1714507853121,-500.0,0.00036164,7]
[325048156,1714507853130,-500.0,0.00036164,7]
[325048158,1714507853139,-500.0,0.00036164,7]
[325048160,1714507853147,-265.62312837,0.00036164,7]
[325048162,1714507853157,-500.0,0.00036164,7]
[325048164,1714507853166,-500.0,0.00036164,7]
[325048167,1714507853175,-500.0,0.00036164,7]
[325048169,1714507853184,-500.0,0.00036164,7]
[325048171,1714507853203,-1698.03,0.00036164,7]
[325048173,1714507853212,-166.24,0.00036164,7]
[325048175,1714507853222,-513.51,0.00036164,7]
[325048177,1714507853231,-1022.18,0.00036164,7]
[325048179,1714507853240,-538.28,0.00036438,7]
[325048181,1714507853249,-428.02,0.00036438,7]
[325048183,1714507853259,-500.0,0.00036438,7]
[325048185,1714507853267,-500.0,0.00036438,7]
[325048187,1714507853276,-448.54,0.00036438,7]
[325048189,1714507853285,-656.74,0.00036438,7]
[325048191,1714507853295,-1254.69,0.00036438,7]
[325048193,1714507853304,-500.0,0.00036438,7]
[325048195,1714507853314,-500.0,0.00036438,7]
[325048197,1714507853323,-500.0,0.00036438,7]
[325048199,1714507853332,-611.37683608,0.00036438,7]
[325048201,1714507853342,-500.0,0.00036438,7]
[325048203,1714507853351,-216.65130462,0.00036438,7]
[325048224,1714507853542,189.45432135,0.00021,2]
[325048233,1714507853608,-301.86,0.0003178,2]
[325048235,1714507853621,-198.14,0.0003178,2]
[325048237,1714507853630,-500.0,0.0003178,2]
[325048239,1714507853639,-500.0,0.00032054,2]
[325048241,1714507853648,-500.0,0.00032054,2]
[325048243,1714507853657,-646.66769105,0.00032328,2]
[325048245,1714507853666,-283.34869538,0.00036438,7]
[325048247,1714507853675,-500.0,0.00036438,7]
[325048249,1714507853684,-1698.03,0.00036438,7]
[325048251,1714507853696,-513.51,0.00036438,7]
[325048253,1714507853706,-1022.18,0.00036438,7]
[325048255,1714507853715,-281.5,0.00036667,14]
[325048257,1714507853724,-538.28,0.00036712,7]
[325048259,1714507853733,-500.0,0.00036712,7]
[325048261,1714507853743,-500.0,0.00036712,7]
[325048263,1714507853752,-656.74,0.00036712,7]
[325048265,1714507853762,-1254.69,0.00036712,7]
[325048267,1714507853771,-500.0,0.00036712,7]
[325048270,1714507853781,-500.0,0.00036712,7]
[325048272,1714507853791,-500.0,0.00036712,7]
[325048274,1714507853800,-533.27,0.00036712,7]
[325048276,1714507853810,-500.0,0.00036712,7]
[325048278,1714507853820,-500.0,0.00036712,7]
[325048279,1714507853829,-1698.03,0.00036712,7]
[325048281,1714507853839,-513.51,0.00036712,7]
[325048283,1714507853848,-1022.18,0.00036712,7]
[325048285,1714507853857,-153.21482082,0.00036932,7]
[325048288,1714507853866,-538.28,0.00036986,7]
[325048289,1714507853875,-578.24,0.00036986,7]
[325048292,1714507853884,-500.0,0.00036986,7]
[325048293,1714507853894,-656.74,0.00036986,7]
[325048296,1714507853903,-1254.69,0.00036986,7]
[325048298,1714507853912,-500.0,0.00036986,7]
[325048299,1714507853921,-500.0,0.00036986,7]
[325048301,1714507853930,-500.0,0.00036986,7]
[325048304,1714507853942,-500.0,0.00036986,7]
[325048306,1714507853952,-214.96,0.00036986,7]
[325048308,1714507853961,-1698.03,0.00036986,7]
[325048310,1714507853970,-513.51,0.00036986,7]
[325048312,1714507853979,-1022.18,0.00036986,7]
[325048314,1714507853989,-402.15110194,0.00036992,7]
[325048316,1714507853998,-3512.4842612,0.00037,2]
[325048318,1714507854012,-402.15110194,0.00037171,7]
[325048320,1714507854021,-153.0,0.00037193,2]
[325048322,1714507854033,-402.15110194,0.00037201,7]
[325048324,1714507854043,-154.64623115,0.00037207,7]
[325048326,1714507854052,-153.89720645,0.00037216,7]
[325048328,1714507854061,-154.64623115,0.00037229,7]
[325048330,1714507854071,-153.21482082,0.00037246,7]
[325048332,1714507854080,-402.15110194,0.00037248,7]
[325048334,1714507854091,-402.15110194,0.00037251,7]
[325048336,1714507854101,-9012.68282379,0.0003726,30]
[325048338,1714507854110,-538.28,0.0003726,7]
[325048340,1714507854119,-500.0,0.0003726,7]
[325048342,1714507854129,-656.74,0.0003726,7]
[325048344,1714507854138,-1254.69,0.0003726,7]
[325048346,1714507854148,-254.87997477,0.0003726,7]
[325048348,1714507854157,-500.0,0.0003726,7]
[325048350,1714507854167,-500.0,0.0003726,7]
[325048352,1714507854176,-500.0,0.0003726,7]
[325048354,1714507854185,-1698.03,0.0003726,7]
[325048356,1714507854196,-513.51,0.0003726,7]
[325048358,1714507854206,-1022.18,0.0003726,7]
[325048360,1714507854215,-153.89720645,0.00037289,7]
[325048363,1714507854224,-1630.46798478,0.00037292,7]
[325048364,1714507854234,-1630.46798478,0.00037331,7]
[325048366,1714507854243,-154.64623115,0.00037346,7]
[325048368,1714507854252,-154.64623115,0.0003739,7]
[325048370,1714507854262,-1006.0,0.0003743,5]
[325048373,1714507854271,-1630.46798478,0.00037437,7]
[325048375,1714507854280,-3542.326258,0.000375,32]
[325048377,1714507854289,-153.0,0.00037522,2]
[325048379,1714507854299,-538.28,0.00037534,7]
[325048381,1714507854308,-500.0,0.00037534,7]